bitfinex-derivatives/quotes_SOLF0:USTF0_20251107
["timestamp","ask_amount","ask_price","bid_price","bid_amount"]
[1762507896430,3.23,155.17,155.1,5.8056]
[1762507896831,9.0333,155.17,155.1,5.8056]
[1762507897233,7.46467737,155.23,155.12,0.04832217]
[1762507897234,3.23,155.14,155.12,0.04832217]
[1762507897534,3.23,155.14,155.05,3.13]
[1762507897535,3.23,155.14,155.11,0.0428818]
[1762507897734,3.23,155.12,155.05,8.9375]
[1762507898435,5.8055,155.11,155.05,8.9375]
[1762507898733,3.27383763,155.1,155.06,0.04624472]
[1762507901229,3.01,155.07,154.99,5.8098]
[1762507901438,3.01,155.07,154.98,3.05]
[1762507901740,3.01,155.04,154.98,3.05]
[1762507902036,3.01,155.04,154.98,8.8601]
[1762507902242,3.05764687,155.03,154.99,0.04109567]
[1762507905032,2.97,155.01,154.99,0.04109567]
[1762507905429,0.04764687,155.03,154.99,0.04109567]
[1762507905637,3.01764687,155.03,154.99,0.04109567]
[1762507907336,8.82624687,155.03,154.99,0.04109567]
[1762507907545,2.97,155.02,154.99,0.04109567]
[1762507908544,2.97,155.02,154.89,3.0]
[1762507908738,2.97,154.95,154.82,7.39676327]
[1762507909044,2.97,154.95,154.83,3.0]
[1762507909242,2.97,154.92,154.83,3.0]
[1762507909543,3.0181582,154.89,154.86,0.04469759]
[1762507918145,0.0481582,154.89,154.86,0.04469759]
[1762507918350,0.0481582,154.89,154.86,3.04469759]
[1762507918942,3.0181582,154.89,154.86,0.04469759]
[1762507919737,0.0481582,154.89,154.86,3.04469759]
[1762507920652,2.97,154.97,154.88,3.0]
[1762507921547,2.97,154.95,154.88,3.0]
[1762507921848,0.04744832,154.93,154.9,3.04122368]
[1762507922446,0.04744832,154.93,154.92,3.0]
[1762507922848,2.97,155.0,154.92,3.0]
[1762507922849,2.97,155.0,154.93,3.0]
[1762507923049,2.97,155.05,154.97,3.0]
[1762507923248,9.825353,155.04,154.97,3.0]
[1762507923448,7.96053678,155.03,154.97,3.0]
[1762507923642,2.97,155.01,154.97,3.0]
[1762507924046,2.97,155.01,154.97,3.04405981]
[1762507924047,0.04445345,155.01,154.97,3.04405981]
[1762507924245,0.04445345,155.01,154.99,3.0]
[1762507924447,7.80937963,155.09,154.99,3.0]
[1762507924749,2.97,155.05,154.95,3.0]
[1762507924953,2.97,155.03,154.95,3.0]
[1762507925146,4.99424131,155.02,154.95,3.0]
[1762507925343,0.04675414,155.0,154.97,0.04631904]
[1762507925542,3.01675414,155.0,154.97,0.04631904]
[1762507925752,0.04675414,155.0,154.97,0.04631904]
[1762507926456,0.04675414,155.0,154.97,3.04631904]
[1762507926953,0.04675414,155.0,154.97,8.85681904]
[1762507927353,0.04675414,155.0,154.98,3.0]
[1762507927746,0.04675414,155.0,154.98,8.8102]
[1762507927954,2.97,155.11,155.0,3.0]
[1762507928256,4.99658574,155.1,155.0,3.0]
[1762507928555,4.99658574,155.09,155.05,3.0]
[1762507928755,4.99658574,155.08,155.05,3.0]
[1762507928950,0.04096396,155.08,155.05,3.04277501]
[1762507929455,0.04096396,155.08,155.05,7.43953828]
[1762507929657,2.97,155.19,155.07,3.0]
[1762507929955,12.81624183,155.18,155.09,3.0]
[1762507930254,2.97,155.23,155.1,3.0]
[1762507930459,12.66411658,155.22,155.1,3.0]
[1762507930662,0.04373129,155.18,155.14,0.04070515]
[1762507930863,0.04373129,155.18,155.14,3.04070515]
[1762507932059,0.04373129,155.18,155.16,3.0]
[1762507933056,7.81617582,155.27,155.17,3.0]
[1762507933264,2.97,155.27,155.2,3.0]
[1762507933461,2.97,155.31,155.2,3.0]
[1762507933661,12.6610525,155.3,155.2,3.0]
[1762507933961,4.84431922,155.29,155.21,3.0]
[1762507934153,0.0438485,155.27,155.23,0.04144985]
[1762507934657,3.2438485,155.27,155.23,0.04144985]
[1762507935462,3.2,155.25,155.23,0.04144985]
[1762507937558,9.0005,155.25,155.23,0.04144985]
[1762507937758,3.2,155.24,155.23,0.04144985]
[1762507938458,3.2,155.26,155.23,0.04144985]
[1762507939452,0.0438485,155.27,155.23,0.04144985]
[1762507939653,3.2438485,155.27,155.23,0.04144985]
[1762507940965,3.2438485,155.27,155.15,3.23]
[1762507941165,5.8007,155.24,155.15,3.23]
[1762507941559,3.2,155.24,155.15,3.23]
[1762507941960,0.04460901,155.21,155.18,0.04447108]
[1762507942359,0.04460901,155.21,155.19,3.23]
[1762507943368,0.04460901,155.21,155.18,0.04447108]
[1762507944967,3.24460901,155.21,155.18,0.04447108]
[1762507946167,0.04460901,155.21,155.18,0.04447108]
[1762507947163,0.04460901,155.21,155.18,3.27447108]
[1762507949772,0.04460901,155.21,155.18,9.07717108]
[1762507950071,0.04460901,155.21,155.19,3.23]
[1762507950261,0.04460901,155.21,155.18,0.04447108]
[1762507950972,3.24460901,155.21,155.18,0.04447108]
[1762507951174,0.04460901,155.21,155.18,0.04447108]
[1762507951561,0.04460901,155.21,155.18,3.27447108]
[1762507952669,4.8150631,155.3,155.2,3.23]
[1762507952967,7.59676327,155.31,155.2,3.23]
[1762507953175,3.2,155.3,155.21,3.23]
[1762507953774,0.04608702,155.27,155.25,3.23]
[1762507954664,3.24608702,155.27,155.24,0.04697904]
[1762507954863,0.04608702,155.27,155.24,3.27697904]
[1762507956172,0.04608702,155.27,155.24,0.04697904]
[1762507956173,3.24608702,155.27,155.24,0.04697904]
[1762507957378,0.04608702,155.27,155.24,0.04697904]
[1762507958481,3.24608702,155.27,155.24,0.04697904]
[1762507960075,3.03,155.25,155.24,0.04697904]
[1762507960474,3.03,155.26,155.24,0.04697904]
[1762507961283,4.83600854,155.25,155.24,0.04697904]
[1762507962084,0.04608702,155.27,155.24,0.04697904]
[1762507962284,4.83662926,155.26,155.24,0.04697904]
[1762507962484,4.83662926,155.25,155.24,0.04697904]
[1762507964178,9.68893061,155.25,155.24,0.04697904]
[1762507965088,4.83662926,155.25,155.24,0.04697904]
[1762507965381,4.83662926,155.25,155.24,3.05697904]
[1762507966193,9.69622652,155.25,155.24,3.05697904]
[1762507966485,4.85959726,155.25,155.24,3.05697904]
[1762507966889,4.85959726,155.25,155.24,0.04697904]
[1762507968193,9.58311887,155.25,155.24,0.04697904]
[1762507969884,18.55412753,155.25,155.24,0.04697904]
[1762507970084,15.43412753,155.25,155.18,3.01]
[1762507970286,9.58311887,155.24,155.18,3.01]
[1762507970488,9.58311887,155.23,155.2,3.01]
[1762507970790,9.58311887,155.22,155.2,3.01]
[1762507971090,4.85959726,155.21,155.2,3.01]
[1762507971291,9.60355414,155.21,155.2,3.01]
[1762507971692,9.60355414,155.21,155.2,5.802]
[1762507972391,9.60355414,155.21,155.2,8.812]
[1762507973588,4.85959726,155.21,155.2,8.812]
[1762507974596,4.85959726,155.21,155.2,10.092]
[1762507974796,5.89977979,155.23,155.22,8.8114]
[1762507975093,0.04877113,155.23,155.22,8.8114]
[1762507975696,5.85100866,155.26,155.24,8.8106]
[1762507975990,4.55776692,155.25,155.24,8.8106]
[1762507976895,4.55776692,155.25,155.24,3.01]
[1762507977290,4.55776692,155.25,155.23,0.04171024]
[1762507977491,0.04144055,155.26,155.23,8.85261024]
[1762507977696,4.5594972,155.25,155.23,8.85261024]
[1762507977897,0.04144055,155.26,155.23,8.85261024]
[1762507978194,0.04144055,155.26,155.23,3.05171024]
[1762507978497,0.04144055,155.26,155.24,5.8006]
[1762507978794,0.04144055,155.26,155.25,3.01]
[1762507978991,4.60200681,155.26,155.25,3.01]
[1762507979298,0.04144055,155.26,155.25,3.01]
[1762507980390,3.12,155.31,155.27,3.01]
[1762507980391,8.97100866,155.31,155.27,3.01]
[1762507980586,4.50725585,155.3,155.27,3.01]
[1762507980888,4.50725585,155.29,155.21,3.01]
[1762507981086,3.12,155.3,155.26,8.8095]
[1762507981285,3.12,155.28,155.22,3.01]
[1762507981491,3.12,155.26,155.19,3.01]
[1762507982491,0.04276623,155.24,155.22,3.01]
[1762507982688,0.04276623,155.24,155.23,3.01]
[1762507986791,3.12,155.33,155.26,3.01]
[1762507987110,3.12,155.37,155.26,3.01]
[1762507987294,3.12,155.35,155.26,3.01]
[1762507987600,3.12,155.33,155.22,3.01]
[1762507987799,0.04838713,155.29,155.26,0.04569349]
[1762507987988,3.16838713,155.29,155.26,0.04569349]
[1762507988793,3.12,155.28,155.19,3.01]
[1762507989004,3.12,155.27,155.19,3.01]
[1762507989804,3.12,155.26,155.21,5.8016]
[1762507990005,3.16679039,155.25,155.21,0.04954639]
[1762507990403,4.44679039,155.25,155.21,0.04954639]
[1762507990600,3.12,155.23,155.21,0.04954639]
[1762507991505,3.12,155.22,155.21,0.04954639]
[1762507992406,4.4,155.22,155.21,0.04954639]
[1762507994007,3.12,155.22,155.21,0.04954639]
[1762507994206,4.4,155.22,155.21,0.04954639]
[1762507994604,3.11,155.21,155.11,3.25]
[1762507994804,3.11,155.19,155.09,201.68311645]
[1762507995010,3.11,155.17,155.09,201.68311645]
[1762507995804,3.11,155.14,155.11,0.04785724]
[1762507996009,3.15070687,155.14,155.11,0.04785724]
[1762507996210,10.23530687,155.14,155.11,0.04785724]
[1762507996408,3.11,155.13,155.11,0.04785724]
[1762507996613,3.11,155.13,155.05,5.8074]
[1762507997212,3.11,155.11,155.06,5.8071]
[1762507997509,7.46042807,155.16,155.07,0.04774418]
[1762507997510,3.15412981,155.1,155.07,0.04774418]
[1762508000020,3.11,155.09,154.96,3.25]
[1762508000515,3.11,155.08,154.98,3.25]
[1762508001013,3.11,155.04,155.01,0.04708477]
[1762508001208,3.11,155.04,155.01,0.0458099]
[1762508001403,0.04126786,155.05,155.01,3.2958099]
[1762508001603,0.04126786,155.05,155.03,3.25]
[1762508002210,3.11,155.11,155.04,4.53]
[1762508002410,3.11,155.11,155.04,3.25]
[1762508003212,0.04066554,155.09,155.07,3.25]
[1762508003410,0.04570002,155.1,155.07,3.25]
[1762508003713,0.04570002,155.1,155.09,3.25]
[1762508004014,3.11,155.18,155.09,3.25]
[1762508004624,3.11,155.25,155.09,3.25]
[1762508004815,3.11,155.24,155.09,3.25]
[1762508005016,3.11,155.17,155.15,0.04553627]
[1762508005216,3.11,155.17,155.14,0.0490272]
[1762508011318,3.11,155.16,155.14,0.0490272]
[1762508012723,3.15918108,155.18,155.14,0.0490272]
[1762508016024,0.04918108,155.18,155.14,0.0490272]
[1762508016220,0.04918108,155.18,155.14,3.2990272]
[1762508017125,0.04918108,155.18,155.16,5.8035]
[1762508017726,0.04918108,155.18,155.17,3.25]
[1762508019024,9.0104,155.25,155.17,4.53]
[1762508019228,3.21,155.24,155.17,3.25]
[1762508019630,3.21,155.24,155.17,9.0531]
[1762508019925,4.45211669,155.29,155.19,0.04836758]
[1762508019926,3.21,155.21,155.19,0.04836758]
[1762508020125,3.21,155.21,155.18,0.04413254]
[1762508020324,3.25165523,155.21,155.18,0.04413254]
[1762508021029,3.21,155.2,155.18,0.04413254]
[1762508025820,3.05,155.19,155.18,0.04413254]
[1762508026030,3.05,155.19,155.09,3.2]
[1762508026529,5.8029,155.18,155.1,5.8056]
[1762508026733,3.05,155.18,155.09,3.2]
[1762508027136,0.04489474,155.15,155.12,0.0431595]
[1762508027324,0.04489474,155.15,155.12,5.8481595]
[1762508027839,0.04489474,155.15,155.12,0.0431595]
[1762508028029,3.09489474,155.15,155.12,0.0431595]
[1762508033933,3.05,155.13,155.03,3.2]
[1762508034135,3.05,155.1,155.0,3.2]
[1762508034439,3.05,155.09,155.04,5.8079]
[1762508034642,3.05,155.09,155.0,3.2]
[1762508035032,0.04731399,155.06,155.03,5.85592494]
[1762508035236,3.09731399,155.06,155.03,0.04752494]
[1762508035940,0.04731399,155.06,155.04,3.2]
[1762508036643,0.04731399,155.06,155.03,3.24752494]
[1762508037934,0.04731399,155.06,155.03,9.05582494]
[1762508038138,0.04731399,155.06,155.03,3.24752494]
[1762508038336,0.04731399,155.06,155.04,3.2]
[1762508039030,0.04731399,155.06,155.04,9.008]
[1762508039235,0.04731399,155.06,155.05,3.2]
[1762508040545,3.05,155.13,155.06,3.2]
[1762508040846,7.84926438,155.12,155.06,3.2]
[1762508041040,3.05,155.11,155.06,3.2]
[1762508041644,3.09892096,155.1,155.07,0.04785716]
[1762508041944,3.0995367,155.1,155.07,0.04762892]
[1762508043246,3.05,155.08,155.07,0.04762892]
[1762508043440,3.05,155.08,154.99,3.2]
[1762508043746,3.05,155.08,154.95,4.38919171]
[1762508043747,3.05,155.05,154.95,3.2]
[1762508043943,3.05,155.05,154.98,3.2]
[1762508044536,3.05,155.05,154.95,4.38919171]
[1762508044537,0.04645195,155.03,155.0,3.24874072]
[1762508045142,0.04645195,155.03,155.02,3.2]
[1762508045446,3.05,155.12,155.02,3.2]
[1762508045649,8.8553,155.12,155.04,5.8078]
[1762508045842,8.8553,155.12,155.04,3.2]
[1762508046157,3.05,155.11,155.04,3.2]
[1762508046343,0.04566147,155.09,155.06,0.04156611]
[1762508047649,0.04566147,155.09,155.06,3.24156611]
[1762508049046,0.04566147,155.09,155.07,9.0068]
[1762508049248,0.04566147,155.09,155.06,0.04156611]
[1762508049249,3.09566147,155.09,155.06,0.04156611]
[1762508049552,3.05,155.07,154.95,3.2]
[1762508049754,4.43485318,155.09,154.91,3.2]
[1762508049755,3.05,155.05,154.91,3.2]
[1762508049950,3.05,155.02,154.91,3.2]
[1762508050346,3.05,154.97,154.95,0.04461094]
[1762508050941,0.0445804,154.98,154.95,0.04461094]
[1762508051755,3.0945804,154.98,154.95,0.04461094]
[1762508052951,5.811,154.97,154.87,9.0141]
[1762508053157,3.05,154.96,154.87,9.0141]
[1762508053547,3.05,154.95,154.85,5.8152]
[1762508053747,3.05,154.95,154.83,3.2]
[1762508053945,3.05,154.95,154.87,0.04672273]
[1762508054149,3.29602555,154.91,154.87,0.04672273]
[1762508054348,3.29602555,154.91,154.87,0.04224544]
[1762508055543,3.25,154.89,154.79,3.08]
[1762508056149,3.25,154.88,154.75,3.08]
[1762508056453,3.25,154.86,154.75,3.08]
[1762508056656,0.04906548,154.82,154.79,3.12336113]
[1762508056858,0.04906548,154.82,154.79,0.04336113]
[1762508057158,3.29906548,154.82,154.79,0.04336113]
[1762508057462,3.29906548,154.82,154.71,3.08]
[1762508057650,3.25,154.82,154.71,3.08]
[1762508057955,3.25,154.82,154.72,3.08]
[1762508058452,3.29309175,154.79,154.75,0.04358064]
[1762508058758,0.04309175,154.79,154.75,3.12651824]
[1762508059253,3.25,154.89,154.77,5.8181]
[1762508059451,4.38919171,154.88,154.77,5.8181]
[1762508059662,3.25,154.87,154.76,3.08]
[1762508059847,3.25,154.86,154.76,3.08]
[1762508060354,3.25,154.82,154.79,0.04703551]
[1762508062869,5.8167,154.81,154.79,0.04703551]
[1762508063163,3.25,154.8,154.69,65.08]
[1762508063458,3.25,154.8,154.69,3.08]
[1762508063660,3.25,154.8,154.71,5.8202]
[1762508064057,0.0426018,154.77,154.74,0.04869574]
[1762508065852,3.2926018,154.77,154.74,0.04869574]
[1762508066159,0.0426018,154.77,154.74,0.04869574]
[1762508066459,0.0426018,154.77,154.74,3.12869574]
[1762508067460,0.0426018,154.77,154.74,4.42869574]
[1762508067658,0.0426018,154.77,154.75,3.08]
[1762508068255,3.25,154.85,154.77,3.08]
[1762508069459,0.04774411,154.83,154.79,3.12430579]
[1762508069651,3.29774411,154.83,154.79,0.04430579]
[1762508071454,9.11394411,154.83,154.79,0.04430579]
[1762508071656,3.25,154.82,154.79,0.04430579]
[1762508073555,3.25,154.81,154.79,0.04430579]
[1762508073755,3.25,154.81,154.69,3.08]
[1762508073952,3.25,154.79,154.63,3.08]
[1762508074154,3.25,154.73,154.64,5.8229]
[1762508074451,3.25,154.73,154.63,3.08]
[1762508074856,0.0434125,154.7,154.66,3.12536717]
[1762508075054,3.2934125,154.7,154.66,0.04536717]
[1762508075654,3.2934125,154.7,154.6,3.08]
[1762508075854,3.25,154.7,154.6,3.08]
[1762508076658,0.04891001,154.67,154.63,0.0453114]
[1762508076864,3.29891001,154.67,154.63,0.0453114]
[1762508077656,3.25,154.66,154.63,0.0453114]
[1762508078661,0.04891001,154.67,154.63,3.1253114]
[1762508080370,0.04891001,154.67,154.63,9.1186114]
[1762508080572,0.04891001,154.67,154.64,3.25]
[1762508081570,0.04891001,154.67,154.66,3.25]
[1762508081866,0.04891001,154.67,154.63,3.2953114]
[1762508082066,0.04891001,154.67,154.66,3.25]
[1762508082270,9.0491,154.75,154.66,4.55]
[1762508082467,9.0491,154.75,154.66,3.25]
[1762508082468,3.23,154.75,154.66,3.25]
[1762508082673,8.04233365,154.79,154.71,3.25]
[1762508082874,3.23,154.79,154.67,7.63919171]
[1762508083167,3.23,154.75,154.67,9.0718]
[1762508083359,3.27945825,154.75,154.71,0.04345143]
[1762508083565,3.23,154.71,154.65,5.8225]
[1762508083966,3.23,154.71,154.63,3.25]
[1762508084272,3.04,154.69,154.59,3.02]
[1762508084664,3.0855354,154.66,154.62,0.04128086]
[1762508084969,3.08076815,154.66,154.62,0.04675241]
[1762508088066,0.04076815,154.66,154.62,3.06675241]
[1762508088270,3.08076815,154.66,154.62,0.04675241]
[1762508089972,0.04076815,154.66,154.62,8.89035241]
[1762508090178,3.08076815,154.66,154.62,5.87035241]
[1762508090371,3.08076815,154.66,154.62,0.04675241]
[1762508090972,3.04,154.64,154.62,0.04675241]
[1762508091170,3.04,154.64,154.55,3.02]
[1762508091171,3.04,154.64,154.49,10.53892935]
[1762508091373,3.04,154.64,154.5,3.02]
[1762508091682,3.04,154.64,154.55,3.02]
[1762508092073,0.04855084,154.61,154.55,3.02]
[1762508092570,3.08855084,154.61,154.55,3.02]
[1762508093170,0.04855084,154.61,154.57,3.02]
[1762508093377,0.04550511,154.61,154.57,3.02]
[1762508094279,0.04550511,154.61,154.59,3.02]
[1762508094474,0.04193819,154.62,154.59,3.02]
[1762508094874,0.04193819,154.62,154.61,3.02]
[1762508095180,0.04193819,154.62,154.51,3.02]
[1762508095377,0.04963953,154.58,154.55,3.02]
[1762508095577,0.04357836,154.58,154.55,3.02]
[1762508095982,0.04357836,154.58,154.55,8.8463]
[1762508096284,0.04357836,154.58,154.52,3.02]
[1762508096878,0.04357836,154.58,154.53,8.8471]
[1762508097081,0.04357836,154.58,154.53,3.02]
[1762508097783,0.04357836,154.58,154.53,8.847]
[1762508097980,3.08357836,154.58,154.53,8.847]
[1762508098175,3.08357836,154.58,154.53,3.02]
[1762508098376,3.08357836,154.58,154.49,3.02]
[1762508098577,0.04489124,154.55,154.49,3.02]
[1762508099481,0.04489124,154.55,154.54,3.02]
[1762508100281,5.82166592,154.63,154.59,3.02]
[1762508100576,4.8729291,154.62,154.59,3.02]
[1762508100782,8.86166592,154.67,154.59,3.02]
[1762508100973,19.60518033,154.79,154.56,7.51892935]
[1762508100974,4.87407363,154.66,154.63,3.02]
[1762508101170,4.87407363,154.65,154.57,3.02]
[1762508101379,0.04401143,154.63,154.6,3.02]
[1762508101574,0.04401143,154.63,154.6,3.06519504]
[1762508102380,3.08401143,154.63,154.6,0.04519504]
[1762508102576,4.87871334,154.62,154.6,0.04519504]
[1762508102778,4.87871334,154.61,154.6,0.04519504]
[1762508103176,3.08401143,154.63,154.6,0.04519504]
[1762508103377,4.87929284,154.62,154.6,3.06519504]
[1762508103577,0.04401143,154.63,154.6,3.06519504]
[1762508103777,4.88015869,154.62,154.6,3.06519504]
[1762508104082,0.04401143,154.63,154.61,3.02]
[1762508105584,0.04401143,154.63,154.6,0.04519504]
[1762508105778,4.88250812,154.62,154.6,3.06519504]
[1762508105979,0.04401143,154.63,154.6,3.06519504]
[1762508106781,0.04401143,154.63,154.62,3.02]
[1762508107692,0.04401143,154.63,154.61,3.02]
[1762508108193,0.04401143,154.63,154.62,3.02]
[1762508110190,0.04401143,154.63,154.6,3.06519504]
[1762508111887,3.04,154.72,154.67,8.8419]
[1762508112093,3.04,154.72,154.67,3.02]
[1762508112293,4.8964311,154.71,154.67,3.02]
[1762508112494,3.04,154.72,154.67,3.02]
[1762508112695,4.89643253,154.71,154.67,3.02]
[1762508112892,0.04861082,154.71,154.68,0.04958259]
[1762508113497,3.08861082,154.71,154.68,0.04958259]
[1762508113791,0.04861082,154.71,154.68,3.06958259]
[1762508114707,0.04861082,154.71,154.7,3.25]
[1762508114905,4.90733786,154.77,154.7,3.25]
[1762508115104,4.90733786,154.76,154.7,3.25]
[1762508115408,2.99,154.78,154.71,5.8204]
[1762508115596,4.91029966,154.77,154.71,5.8204]
[1762508115798,4.95126765,154.76,154.72,0.04914413]
[1762508115997,0.04096799,154.76,154.72,3.29914413]
[1762508116408,0.04096799,154.76,154.75,3.25]
[1762508116807,0.04096799,154.76,154.73,3.25]
[1762508117004,0.04096799,154.76,154.75,3.25]
[1762508117203,8.81166592,154.82,154.75,3.25]
[1762508117204,4.91603212,154.81,154.75,3.25]
[1762508117400,2.99,154.82,154.75,3.25]
[1762508118202,0.04803715,154.8,154.77,3.29569174]
[1762508118402,0.04896965,154.8,154.77,3.29794739]
[1762508120006,0.04896965,154.8,154.78,3.25]
[1762508121819,0.04896965,154.8,154.79,3.25]
[1762508123610,7.50193118,154.88,154.79,3.25]
[1762508123611,2.99,154.88,154.79,3.25]
[1762508123914,7.88800364,154.87,154.79,3.25]
[1762508124115,2.99,154.85,154.76,9.0685]
[1762508124612,3.0378632,154.82,154.79,0.04350862]
[1762508125316,0.0478632,154.82,154.79,0.04350862]
[1762508125817,0.0478632,154.82,154.79,3.29350862]
[1762508126516,0.0478632,154.82,154.79,0.04350862]
[1762508126812,0.0478632,154.82,154.79,3.29350862]
[1762508127609,3.0378632,154.82,154.79,0.04350862]
[1762508128015,0.0478632,154.82,154.79,3.29350862]
[1762508129813,0.0478632,154.82,154.79,0.04350862]
[1762508130018,3.0378632,154.82,154.79,0.04350862]
[1762508130708,0.0478632,154.82,154.79,3.29350862]
[1762508131219,0.0478632,154.82,154.79,0.04350862]
[1762508132319,0.0478632,154.82,154.79,3.29350862]
[1762508132816,0.0478632,154.82,154.81,3.25]
[1762508136020,0.0478632,154.82,154.8,5.817]
[1762508136217,0.0478632,154.82,154.8,9.067]
[1762508136520,0.0478632,154.82,154.81,3.25]
[1762508137315,0.0478632,154.82,154.8,5.817]
[1762508137512,0.0478632,154.82,154.8,3.25]
[1762508137715,0.0478632,154.82,154.79,0.04350862]
[1762508137920,0.0478632,154.82,154.79,3.29350862]
[1762508138117,0.0478632,154.82,154.81,3.25]
[1762508144521,0.0478632,154.82,154.8,5.8169]
[1762508144730,3.2378632,154.82,154.79,0.04350862]
[1762508145221,5.8171,154.8,154.74,2.97]
[1762508145420,1.3478632,154.82,154.58,90.614]
[1762508145421,3.19,154.79,154.7,2.97]
[1762508145824,3.19,154.78,154.71,2.97]
[1762508146318,3.23403411,154.76,154.73,0.04418028]
[1762508146523,3.23308477,154.76,154.73,0.01572886]
[1762508146723,3.19,154.74,154.73,0.01572886]
[1762508147119,3.19,154.73,154.63,2.97]
[1762508147515,3.19,154.71,154.63,2.97]
[1762508148128,0.04917593,154.69,154.65,3.01390091]
[1762508148519,3.23917593,154.69,154.65,0.04390091]
[1762508149818,3.23917593,154.69,154.57,2.97]
[1762508149819,3.19,154.65,154.57,2.97]
[1762508150428,3.19,154.62,154.54,5.8267]
[1762508150720,3.19,154.62,154.54,2.97]
[1762508151126,0.04374196,154.6,154.56,3.01502187]
[1762508151324,7.60634357,154.69,154.62,5.8236]
[1762508151522,0.04202612,154.67,154.64,0.04170434]
[1762508151928,0.04202612,154.67,154.64,3.01170434]
[1762508152121,0.04202612,154.67,154.64,0.04170434]
[1762508153020,3.23202612,154.67,154.64,0.04170434]
[1762508153218,0.04202612,154.67,154.64,0.04170434]
[1762508153623,3.23202612,154.67,154.64,0.04170434]
[1762508159430,3.19,154.66,154.64,0.04170434]
[1762508160235,3.19,154.66,154.6,5.8244]
[1762508160236,3.19,154.65,154.54,2.97]
[1762508160430,3.19,154.63,154.54,2.97]
[1762508160734,3.19,154.59,154.53,5.8271]
[1762508161232,3.23567817,154.58,154.54,0.04573812]
[1762508162722,3.23567817,154.58,154.41,2.97]
[1762508162723,3.19,154.56,154.41,2.97]
[1762508162933,3.19,154.56,154.42,2.97]
[1762508163125,9.0169,154.54,154.43,2.97]
[1762508163329,3.19,154.54,154.47,5.8293]
[1762508163524,3.19,154.59,154.5,4.41634357]
[1762508163731,3.19,154.62,154.51,2.97]
[1762508163928,3.19,154.56,154.51,2.97]
[1762508164537,3.19,154.56,154.52,2.97]
[1762508164726,3.19,154.56,154.51,5.8278]
[1762508164932,3.19,154.56,154.45,7.38634357]
[1762508165131,0.04904307,154.52,154.47,8.7993]
[1762508165537,3.23904307,154.52,154.47,5.8293]
[1762508165830,3.23904307,154.52,154.47,8.7993]
[1762508166630,3.23904307,154.52,154.48,5.829]
[1762508166935,3.23904307,154.52,154.47,2.97]
[1762508167433,3.23904307,154.52,154.42,2.97]
[1762508167737,0.04187561,154.49,154.42,2.97]
[1762508168230,0.04187561,154.49,154.47,8.7993]
[1762508168432,0.04541622,154.5,154.48,2.97]
[1762508168629,0.0497366,154.51,154.48,2.97]
[1762508168830,0.0497366,154.51,154.49,8.7987]
[1762508169031,0.0497366,154.51,154.5,2.97]
[1762508169232,3.19,154.62,154.5,2.97]
[1762508169534,3.19,154.62,154.53,5.827]
[1762508170125,3.19,154.61,154.56,0.0491626]
[1762508170331,3.23220271,154.59,154.56,0.0491626]
[1762508172940,3.19,154.58,154.47,2.97]
[1762508173232,3.19,154.56,154.49,2.97]
[1762508173437,3.19,154.61,154.49,2.97]
[1762508173638,3.19,154.59,154.49,2.97]
[1762508174033,0.0437844,154.56,154.49,2.97]
[1762508174340,3.2637844,154.56,154.51,5.8277]
[1762508174639,3.2637844,154.56,154.51,8.9377]
[1762508175029,3.2637844,154.56,154.49,5.8286]
[1762508175230,3.2637844,154.56,154.49,3.11]
[1762508175635,3.2637844,154.56,154.49,8.9386]
[1762508176033,3.2637844,154.56,154.48,5.8289]
[1762508176235,7.8028925,154.68,154.44,3.11]
[1762508176236,0.04414483,154.54,154.5,3.11]
[1762508176535,3.22,154.64,154.53,3.11]